bitfinex-derivatives/quotes_ETHF0:USTF0_20251013
["timestamp","ask_amount","ask_price","bid_price","bid_amount"]
[1760328514895,3.64238,4138.2,4138.0,0.1269]
[1760328515097,0.60782081,4138.1,4138.0,0.8771]
[1760328515292,3.80657497,4138.1,4138.0,0.8771]
[1760328518697,0.4346,4138.0,4137.8,0.02594268]
[1760328518896,0.4346,4138.0,4137.8,0.34354268]
[1760328518897,0.60782081,4137.9,4137.8,0.34354268]
[1760328519198,3.70696167,4137.9,4137.8,0.34354268]
[1760328519588,3.70696167,4137.9,4137.8,0.02594268]
[1760328521198,3.70696167,4137.9,4136.9,3.2078]
[1760328521199,0.43474,4136.7,4136.6,0.3176]
[1760328521491,4.24402826,4136.7,4136.6,0.3176]
[1760328521700,4.24402826,4136.7,4136.5,0.1269]
[1760328521899,0.60824484,4136.6,4136.5,0.1269]
[1760328522085,0.61121701,4136.6,4136.5,0.12992519]
[1760328522396,3.20401496,4136.6,4136.5,0.12992519]
[1760328522689,3.20401496,4136.6,4136.5,0.00302519]
[1760328522997,3.81687659,4136.6,4136.5,0.00302519]
[1760328525895,3.81687659,4136.6,4136.5,0.13062519]
[1760328526891,3.81687659,4136.6,4136.5,0.45972519]
[1760328529698,3.81687659,4136.6,4136.5,0.66872519]
[1760328529901,3.81687659,4136.6,4136.5,0.88012519]
[1760328529902,3.20401496,4136.6,4136.5,0.88012519]
[1760328530099,0.00297217,4136.6,4136.5,0.88012519]
[1760328530792,3.2078,4137.0,4136.6,0.3291]
[1760328530996,3.2078,4137.0,4136.9,0.4204]
[1760328531196,3.2078,4137.0,4136.9,0.7495]
[1760328531795,3.21084082,4137.0,4136.9,0.7495]
[1760328532501,6.78877324,4137.0,4136.9,0.3291]
[1760328532702,6.78877324,4137.0,4136.9,0.3227]
[1760328532900,6.78877324,4137.0,4136.9,0.209]
[1760328533493,0.43474,4136.7,4136.5,0.33962519]
[1760328533698,0.43474,4136.7,4136.6,0.4204]
[1760328533901,6.35407324,4137.0,4136.6,0.4204]
[1760328534703,6.35407324,4137.0,4136.9,0.4204]
[1760328534904,6.35407324,4137.0,4136.9,0.7495]
[1760328535596,3.14627324,4137.0,4136.9,0.7495]
[1760328535991,0.00304082,4137.0,4136.9,0.7495]
[1760328538803,3.18494195,4137.0,4136.9,0.3291]
[1760328539508,3.18494195,4137.0,4136.8,3.2078]
[1760328539704,0.43471,4136.9,4136.8,3.2078]
[1760328540009,3.57802002,4136.9,4136.8,3.2078]
[1760328540602,3.57802002,4136.9,4136.5,0.45972519]
[1760328540603,0.43474,4136.6,4136.5,0.45972519]
[1760328541006,3.51399796,4136.6,4136.5,0.45972519]
[1760328542310,3.51399796,4136.6,4136.5,0.13062519]
[1760328542511,3.51399796,4136.6,4136.5,0.00302519]
[1760328543408,0.43481,4136.0,4135.8,0.3291]
[1760328543610,0.43479,4136.2,4136.0,0.129]
[1760328543810,0.43479,4136.2,4136.1,0.3291]
[1760328544106,3.51998905,4136.2,4136.1,0.3291]
[1760328544410,3.51998905,4136.2,4136.1,0.33130653]
[1760328544911,3.08519905,4136.2,4136.1,0.75170653]
[1760328545308,0.43478,4136.3,4136.2,0.3291]
[1760328545709,3.5202236,4136.3,4136.1,0.00220653]
[1760328546314,3.5202236,4136.3,4136.1,0.33130653]
[1760328548120,3.5202236,4136.3,4136.2,0.3291]
[1760328551021,3.5202236,4136.3,4136.2,0.7495]
[1760328551524,3.5202236,4136.3,4136.2,0.5381]
[1760328552030,3.5202236,4136.3,4136.2,0.3291]
[1760328554334,3.0854436,4136.3,4136.2,0.7495]
[1760328554628,0.00304082,4137.0,4136.9,0.209]
[1760328554833,3.2078,4137.6,4137.5,0.8785]
[1760328555335,6.33184891,4137.6,4137.5,0.8785]
[1760328555830,6.33466902,4137.6,4137.5,0.8785]
[1760328558540,3.12686902,4137.6,4137.5,0.8785]
[1760328561730,3.12686902,4137.6,4137.5,0.4581]
[1760328564139,3.12686902,4137.6,4137.5,0.6728]
[1760328564329,3.12686902,4137.6,4137.1,3.2078]
[1760328564534,3.12686902,4137.6,4137.1,0.3448]
[1760328564734,3.56150902,4137.6,4137.5,0.4807]
[1760328564934,4.17369943,4137.6,4137.5,0.4807]
[1760328565135,3.56150902,4137.6,4137.5,0.6954]
[1760328565743,3.12686902,4137.6,4137.5,0.9114]
[1760328566145,0.00282011,4137.6,4137.5,0.9114]
[1760328566840,0.43746011,4137.6,4137.5,0.9114]
[1760328567039,3.51097112,4137.6,4137.5,0.6954]
[1760328568043,3.51097112,4137.6,4137.5,0.9114]
[1760328570240,6.71877112,4137.6,4137.5,0.4807]
[1760328570444,6.71877112,4137.6,4137.5,0.1359]
[1760328570845,6.71877112,4137.6,4137.5,0.4807]
[1760328571046,6.71877112,4137.6,4137.5,0.6954]
[1760328571247,3.51097112,4137.6,4137.5,0.9114]
[1760328573034,3.07633112,4137.6,4137.5,0.9114]
[1760328573243,0.00282011,4137.6,4137.5,0.9114]
[1760328575546,1.2356881,4137.6,4137.5,0.9114]
[1760328579451,5.59640861,4137.6,4137.5,0.4807]
[1760328579647,5.59640861,4137.6,4137.5,0.1359]
[1760328579854,5.59640861,4137.6,4137.5,0.4807]
[1760328580253,6.2095489,4137.6,4137.5,0.4807]
[1760328581955,0.43468,4137.2,4137.1,0.5595]
[1760328582152,1.66754799,4137.2,4137.1,0.5595]
[1760328582349,4.86096504,4137.2,4137.1,0.7755]
[1760328583059,4.42628504,4137.2,4137.1,0.7755]
[1760328584248,5.04101975,4137.2,4137.1,0.7755]
[1760328585464,4.42628504,4137.2,4137.1,0.7755]
[1760328589363,1.6703281,4137.6,4137.5,0.8963]
[1760328589659,2.28509548,4137.6,4137.5,0.8963]
[1760328590460,1.2356881,4137.6,4137.5,0.8963]
[1760328594066,6.20421298,4137.6,4137.5,0.678]
[1760328594266,6.20421298,4137.6,4137.5,0.4589]
[1760328595565,4.97134499,4137.6,4137.5,0.4589]
[1760328596065,3.738477,4137.6,4137.5,0.8963]
[1760328596265,4.97134499,4137.6,4137.5,0.8963]
[1760328598760,6.20421298,4137.6,4137.5,0.4589]
[1760328599464,4.97134499,4137.6,4137.5,0.678]
[1760328599663,6.20421298,4137.6,4137.5,0.4589]
[1760328599864,4.97134499,4137.6,4137.5,0.4589]
[1760328601164,4.97134499,4137.6,4137.5,0.8963]
[1760328601364,6.20421298,4137.6,4137.5,0.4589]
[1760328601667,4.97134499,4137.6,4137.5,0.678]
[1760328602868,6.20421298,4137.6,4137.5,0.4589]
[1760328603770,4.97134499,4137.6,4137.5,0.4589]
[1760328604871,6.20421298,4137.6,4137.5,0.4589]
[1760328605761,4.97134499,4137.6,4137.5,0.4589]
[1760328606174,6.20421298,4137.6,4137.5,0.4589]
[1760328606472,4.97134499,4137.6,4137.5,0.4589]
[1760328606669,4.97134499,4137.6,4137.5,0.678]
[1760328607870,4.97134499,4137.6,4137.5,0.8963]
[1760328608073,0.00282011,4137.6,4137.5,0.8963]
[1760328608567,0.43457,4138.3,4138.2,0.7621]
[1760328608772,1.66743799,4138.3,4138.2,0.3247]
[1760328608966,5.35504239,4138.3,4138.2,0.3247]
[1760328609171,0.43458,4138.1,4138.0,0.1342]
[1760328609369,0.43650032,4138.1,4138.0,0.4589]
[1760328609570,4.12410472,4138.1,4138.0,0.4589]
[1760328609778,7.33190472,4138.1,4138.0,0.4589]
[1760328610573,7.33190472,4138.1,4137.5,0.1342]
[1760328610574,0.43464,4137.6,4137.5,0.1342]
[1760328610771,1.66750799,4137.6,4137.5,0.5716]
[1760328610967,5.4304341,4137.6,4137.5,0.5716]
[1760328611168,5.4304341,4137.6,4137.5,0.8963]
[1760328611976,5.4304341,4137.6,4137.5,0.4589]
[1760328612269,6.66330209,4137.6,4137.5,0.4589]
[1760328612981,6.66330209,4137.6,4137.5,0.1342]
[1760328613277,0.43467,4137.3,4137.2,3.5325]
[1760328613675,3.59445692,4137.3,4137.2,3.5325]
[1760328614075,4.82732491,4137.3,4137.2,3.5325]
[1760328614469,4.82732491,4137.3,4137.2,3.7516]
[1760328615778,5.43933311,4137.3,4137.2,0.5438]
[1760328622484,5.43933311,4137.3,4137.2,0.3247]
[1760328623081,5.43933311,4137.3,4137.2,0.5354]
[1760328624479,5.43933311,4137.3,4137.2,0.3247]
[1760328624887,5.43933311,4137.3,4137.2,0.5354]
[1760328626186,5.43933311,4137.3,4137.2,0.7552]
[1760328629583,5.77881759,4137.3,4137.2,0.7552]
[1760328632191,5.77881759,4137.3,4137.0,0.629]
[1760328632192,0.43469,4137.1,4137.0,0.5]
[1760328632391,4.2544982,4137.1,4137.0,0.00258774]
[1760328632595,0.43474,4136.6,4136.5,0.4701]
[1760328632893,5.7354009,4136.6,4136.5,0.4701]
[1760328634587,0.43477,4136.3,4136.2,3.5489]
[1760328634987,3.53335544,4136.3,4136.2,3.5489]
[1760328636399,3.53335544,4136.3,4136.2,0.3411]
[1760328637400,3.53335544,4136.3,4136.2,0.5518]
[1760328638994,3.09858544,4136.3,4136.2,0.7716]
[1760328639392,3.51592314,4136.5,4136.3,0.3411]
[1760328639591,0.43475,4136.5,4136.4,0.7716]
[1760328639792,3.2078,4137.1,4137.0,0.9079]
[1760328639993,4.78015247,4137.6,4137.5,0.4305]
[1760328640198,4.78015247,4137.6,4137.5,0.9079]
[1760328640499,7.8801055,4137.6,4137.5,0.9079]
[1760328640800,3.2078,4137.6,4137.5,0.9079]
[1760328642098,2.00697247,4137.8,4137.6,0.3411]
[1760328642500,2.00697247,4137.8,4137.7,0.7716]
[1760328644490,3.20972032,4138.1,4137.7,0.4305]
[1760328644491,0.00192032,4138.1,4137.7,0.4305]
[1760328644691,3.2078,4138.7,4138.6,0.7716]
[1760328645699,0.00271169,4138.7,4138.6,0.7716]
[1760328646703,0.00271169,4138.7,4138.6,4.41393]
[1760328648203,4.78015247,4139.8,4139.7,0.7636]
[1760328648603,7.96916943,4139.8,4139.7,0.7636]
[1760328649403,7.97227055,4139.8,4139.7,0.76569583]
[1760328650298,0.00310112,4139.8,4139.7,0.76569583]
[1760328650508,0.00310112,4139.8,4139.7,3.97349583]
[1760328650703,1.57235247,4140.8,4140.5,0.1304]
[1760328651005,1.57235247,4140.8,4140.7,0.7638]
[1760328651398,4.72006554,4140.8,4140.7,0.5342]
[1760328651603,3.14771307,4140.8,4140.7,0.7638]
[1760328651902,0.00212613,4140.8,4140.7,0.7638]
[1760328657005,0.00212613,4140.8,4140.7,3.9716]
[1760328657709,0.00212613,4140.8,4140.7,4.40591]
[1760328658102,3.2078,4141.5,4141.4,0.7638]
[1760328658409,6.30270974,4141.5,4141.4,0.7638]
[1760328659108,6.3051333,4141.5,4141.4,0.7638]
[1760328659711,6.3051333,4141.5,4141.4,0.5342]
[1760328659909,6.3051333,4141.5,4141.4,0.3246]
[1760328660605,3.0973333,4141.5,4141.4,0.7638]
[1760328662914,3.5315633,4141.5,4141.4,0.7638]
[1760328663415,3.5315633,4141.5,4141.4,0.5342]
[1760328663712,3.0973333,4141.5,4141.4,0.7638]
[1760328665013,3.0973333,4141.5,4141.4,0.3246]
[1760328665309,3.0973333,4141.5,4141.4,0.5342]
[1760328665518,3.0973333,4141.5,4141.4,0.7638]
[1760328665911,0.43426,4141.2,4141.0,0.1304]
[1760328666110,1.57235247,4141.1,4141.0,0.455]
[1760328666316,4.69362856,4141.1,4141.0,0.455]
[1760328666515,4.69362856,4141.1,4141.0,0.6646]
[1760328667013,4.69362856,4141.1,4140.5,0.1304]
[1760328667215,3.12127609,4141.1,4140.6,0.3246]
[1760328667411,2.00666247,4140.7,4140.6,0.3246]
[1760328667608,4.69362856,4141.1,4140.6,0.7638]
[1760328667818,2.00662247,4141.1,4141.0,0.6646]
[1760328668117,0.43432,4140.6,4140.5,0.455]
[1760328668313,2.00667247,4140.6,4140.5,0.1304]
[1760328668510,5.21662559,4140.6,4140.5,0.455]
[1760328668717,5.21662559,4140.6,4140.5,0.6646]
[1760328669612,5.21662559,4140.6,4140.5,0.8942]
[1760328670220,5.21662559,4140.6,4140.5,0.455]
[1760328671620,5.39023276,4140.6,4140.0,0.455]
[1760328671819,1.57235247,4140.1,4140.0,0.455]
[1760328672019,2.1799942,4140.1,4139.7,3.20989583]
[1760328672223,0.60764173,4140.0,4139.7,3.20989583]
[1760328672421,0.60764173,4140.0,4139.7,3.53449583]
[1760328672619,3.61189449,4139.9,4139.8,0.3246]
[1760328672810,4.21953622,4139.9,4139.8,0.3246]
[1760328673016,3.17750449,4139.9,4139.8,0.7638]
[1760328673215,3.78610842,4139.9,4139.8,0.7638]
[1760328673518,0.60860393,4139.9,4139.8,0.7638]
[1760328673713,3.70196418,4139.9,4139.8,0.7638]
[1760328674113,3.2078,4140.4,4140.0,0.1304]
[1760328674314,0.43432,4140.7,4140.2,0.7638]
[1760328674315,0.43431,4140.7,4140.2,0.7638]
[1760328674519,0.60915312,4140.6,4140.5,0.8942]
[1760328674821,3.79639995,4140.6,4140.5,0.8942]
[1760328675121,3.2078,4141.4,4141.1,0.3246]
[1760328675325,0.43426,4141.2,4141.1,0.3246]
[1760328675529,1.04365625,4141.2,4141.1,0.3246]
[1760328675720,4.25454622,4141.2,4141.1,0.3246]
[1760328676022,3.82028622,4141.2,4140.6,0.3246]
[1760328676225,0.43431,4140.7,4140.6,0.3246]
[1760328676526,4.14085601,4140.7,4140.6,0.3246]
[1760328677117,4.14085601,4140.7,4140.6,0.5342]
[1760328679014,4.14085601,4140.7,4140.6,0.3246]
[1760328680226,4.99958893,4140.7,4140.6,0.3246]
[1760328680422,0.43436,4140.2,4139.9,3.2078]
[1760328680626,0.43438,4140.0,4139.9,3.5473]
[1760328680823,1.04377625,4140.0,4139.9,3.5473]
[1760328681019,4.17239099,4140.0,4139.9,3.5473]
[1760328681222,4.17239099,4140.0,4139.9,0.3395]
[1760328681524,3.73801099,4140.0,4139.9,0.568]
[1760328681828,3.73801099,4140.0,4139.9,0.7953]
[1760328682124,3.73801099,4140.0,4139.9,0.3395]
[1760328682323,3.73801099,4140.0,4139.9,0.7953]
[1760328682726,0.60939625,4140.0,4139.9,0.7953]
[1760328683625,0.43432,4140.6,4140.5,0.9211]
[1760328683826,1.04435255,4140.6,4140.5,0.9211]
[1760328684025,4.18072353,4140.6,4140.5,0.9211]
[1760328684224,4.18072353,4140.6,4140.5,0.6938]
[1760328685123,4.18072353,4140.6,4140.5,0.4653]
[1760328685326,5.03750766,4140.6,4140.5,0.4653]
[1760328686733,0.43436,4140.2,4140.0,0.1258]
[1760328687032,3.75820589,4140.1,4140.0,0.4653]
[1760328687227,3.75820589,4140.1,4140.0,0.6938]
[1760328687633,3.75820589,4140.1,4140.0,0.9211]
[1760328688029,0.61003255,4140.1,4140.0,0.9211]
[1760328688231,0.10505099,4140.1,4140.0,0.9211]
[1760328688432,0.85641911,4141.0,4140.8,0.7953]
[1760328688637,1.29068911,4141.1,4140.8,0.7953]
[1760328688830,6.37769286,4140.9,4140.8,0.7953]
[1760328689031,6.37769286,4140.9,4140.6,0.2285]
[1760328689230,6.81199286,4140.9,4140.5,0.1258]
[1760328689426,0.4343,4140.8,4140.6,0.2285]
[1760328689632,0.4343,4140.8,4140.7,0.3395]
[1760328689832,3.64209,4140.9,4140.5,0.3543]
[1760328690127,3.09217534,4140.8,4140.7,0.3395]
[1760328690631,3.09217534,4140.8,4138.4,1.71486986]
[1760328690632,0.1121,4138.5,4138.4,1.71486986]
[1760328690828,0.1121,4138.5,4137.8,3.2078]
[1760328691027,3.23621149,4138.5,4137.8,3.2078]
[1760328691238,0.43457,4138.2,4137.8,3.2078]
[1760328691433,0.43457,4138.2,4138.0,0.1309]
[1760328691636,0.43459,4138.0,4137.8,3.21027541]
[1760328691836,0.1122,4137.9,4137.8,3.21027541]
[1760328692038,3.23631149,4137.9,4137.8,3.21027541]
[1760328692634,3.23631149,4137.9,4137.8,3.52377541]
[1760328693636,3.23631149,4137.9,4137.8,0.00247541]
[1760328696933,3.59551149,4137.9,4137.8,0.31597541]
[1760328697447,3.59551149,4137.9,4137.8,0.00247541]
[1760328699054,3.12411149,4137.9,4137.8,0.76457541]
[1760328699250,3.30371149,4137.9,4137.8,0.76457541]
[1760328699851,3.48331149,4137.9,4137.8,0.76457541]
[1760328700342,3.48331149,4137.9,4137.8,0.31597541]
[1760328700550,3.59551149,4137.9,4137.8,0.31597541]
[1760328701558,3.48331149,4137.9,4137.8,0.53317541]
[1760328701855,3.12411149,4137.9,4137.8,0.76457541]
[1760328702057,3.30371149,4137.9,4137.8,0.76457541]
[1760328702254,0.4347,4137.0,4136.8,3.5213]
[1760328702448,0.3512,4136.9,4136.8,3.2078]
[1760328702760,8.06857033,4136.9,4136.8,3.2078]
[1760328702944,8.06857033,4136.9,4136.8,3.5213]
[1760328703149,8.06857033,4136.9,4136.8,3.2078]
[1760328703348,8.06857033,4136.9,4136.8,3.21093834]
[1760328703855,8.06857033,4136.9,4136.8,0.00313834]
[1760328707356,8.06857033,4136.9,4136.8,8.34e-06]
[1760328715166,8.67595272,4136.9,4136.8,8.34e-06]
[1760328715461,3.25313334,4136.9,4136.8,0.32910834]
[1760328715656,3.53743334,4136.9,4136.8,0.32910834]
[1760328715856,0.43486,4135.4,4135.3,0.3291]
[1760328716062,0.43486,4135.4,4134.5,0.1252]
[1760328716063,8.17269699,4135.4,4134.5,0.1252]
[1760328716258,0.43494,4134.6,4134.5,0.1252]
[1760328716663,3.11146141,4134.6,4134.5,0.5668]
[1760328716863,3.11419708,4134.6,4134.5,0.56854099]
[1760328717064,0.00273567,4134.6,4134.5,0.56854099]
[1760328717266,3.15875162,4134.6,4134.5,0.56854099]
[1760328718269,3.15875162,4134.6,4134.5,0.89764099]
[1760328718871,0.00273567,4134.6,4134.5,4.10544099]
[1760328722771,3.63132721,4134.6,4134.5,0.45604099]
[1760328723572,4.24551963,4134.6,4134.5,0.45604099]
[1760328726670,4.24551963,4134.6,4134.5,0.12694099]
[1760328727173,4.24551963,4134.6,4134.5,0.45604099]
[1760328731379,5.10185453,4134.6,4134.5,0.45604099]
[1760328732574,4.24551963,4134.6,4134.5,0.45604099]
[1760328733177,4.24551963,4134.6,4134.5,0.89764099]
[1760328733178,5.09732109,4134.6,4134.5,0.89764099]
[1760328733674,4.24551963,4134.6,4134.5,0.89764099]
[1760328733875,3.81057963,4134.6,4134.5,0.89764099]
[1760328734284,0.61692809,4134.6,4134.5,0.89764099]
[1760328738582,0.61692809,4134.6,4134.5,4.10544099]
[1760328739882,0.00273567,4134.6,4134.5,4.10544099]
[1760328745187,0.62097001,4134.6,4134.5,4.10544099]
[1760328746185,0.00273567,4134.6,4134.5,4.10544099]
[1760328746795,0.62080871,4134.6,4134.5,4.10544099]
[1760328748081,0.00273567,4134.6,4134.5,4.10544099]
[1760328748681,0.62123267,4134.6,4134.5,4.10544099]
[1760328749086,0.00273567,4134.6,4134.5,4.10544099]
[1760328751885,3.79607801,4134.6,4134.5,3.66384099]
[1760328752687,3.79607801,4134.6,4134.5,0.45604099]
[1760328753186,3.79607801,4134.6,4134.5,0.12694099]
[1760328753692,8.91326226,4134.6,4134.5,0.45664099]
[1760328755688,5.37074733,4134.6,4134.5,0.45664099]
[1760328757589,5.37074733,4134.6,4134.5,0.12694099]
[1760328757898,5.37074733,4134.6,4134.5,0.45664099]
[1760328758393,5.37074733,4134.6,4134.0,0.1252]
[1760328758394,0.43501,4134.1,4134.0,0.1252]
[1760328758594,2.6285381,4134.1,4134.0,0.1252]
[1760328758786,5.80727099,4134.1,4134.0,0.1252]
[1760328759290,5.80727099,4134.1,4134.0,0.12815719]
[1760328759491,0.43504,4133.8,4133.7,0.089]
[1760328759888,3.59964465,4133.8,4133.7,0.089]
[1760328760390,4.2182521,4133.8,4133.7,0.089]
[1760328760591,4.2182521,4133.8,4133.7,0.42153249]
[1760328761295,3.59964465,4133.8,4133.7,0.42153249]
[1760328761486,4.21814919,4133.8,4133.7,0.42153249]
[1760328762092,4.21814919,4133.8,4133.7,0.09183249]
[1760328762298,4.21814919,4133.8,4133.7,0.42153249]
[1760328762590,0.43513,4132.9,4132.8,0.02419667]
[1760328762798,2.00979932,4132.9,4132.8,0.35389667]
[1760328762999,5.14232357,4132.9,4132.8,0.35389667]
[1760328763599,3.56765425,4132.9,4132.8,0.35695447]
[1760328764096,3.56765425,4132.9,4132.8,0.02725447]
[1760328764598,3.56765425,4132.9,4131.1,0.3297]
[1760328764599,1.088,4132.3,4131.1,0.3297]
[1760328764795,1.088,4132.3,4130.6,3.2078]
[1760328764796,1.05250702,4132.2,4132.0,0.1296]
[1760328765097,0.61728702,4132.1,4132.0,0.6716]
[1760328765285,3.2078,4132.1,4132.0,0.1296]
[1760328765485,3.2078,4132.1,4131.7,0.3297]
[1760328765486,0.43527,4131.6,4131.5,0.1296]
[1760328765693,0.43525,4131.9,4131.6,0.542]
[1760328765898,0.43525,4131.9,4131.8,0.3297]
[1760328766299,3.65055462,4131.9,4131.8,0.3297]
[1760328766602,3.65307221,4131.9,4131.8,0.33206564]
[1760328767191,0.43527,4131.7,4131.1,0.5601]
[1760328767399,3.64308,4131.6,4131.5,0.472]
[1760328767592,6.76399239,4131.6,4131.5,0.1381]
[1760328767902,0.43531,4131.3,4130.7,3.2078]
[1760328768292,3.16971764,4131.2,4131.1,0.3339]
[1760328768597,3.16971764,4131.2,4131.1,0.5601]
[1760328768893,3.16971764,4131.2,4131.1,0.3339]
[1760328769998,3.16971764,4131.2,4131.0,0.13205334]
[1760328769999,0.43547,4129.7,4129.3,0.3339]
[1760328770197,0.43547,4129.7,4129.0,0.1381]
[1760328770198,3.2078,4130.7,4130.1,0.2262]
[1760328770393,3.2078,4130.7,4130.6,0.5601]
[1760328770892,6.2897215,4130.7,4130.6,0.56190452]
[1760328771094,6.2897215,4130.7,4130.6,0.33570452]
[1760328772099,6.2897215,4130.7,4130.6,0.00180452]
[1760328772500,6.2897215,4130.7,4130.6,0.33570452]
[1760328775298,6.2897215,4130.7,4130.6,0.77150452]
[1760328775702,3.0819215,4130.7,4130.6,0.77150452]
[1760328776000,3.64311,4131.3,4131.1,0.2262]
[1760328776199,3.64311,4131.3,4131.2,0.5601]
[1760328776698,6.81996919,4131.3,4131.2,0.5601]
[1760328777706,6.38465919,4131.3,4131.2,0.7697]
[1760328778105,6.38465919,4131.3,4131.2,0.5601]
[1760328779804,1.08832,4131.1,4130.6,0.00180452]
[1760328780012,1.08832,4131.1,4130.1,0.3339]
[1760328780013,0.43542,4130.2,4130.1,0.3339]
[1760328780201,3.64322,4130.2,4129.6,3.2078]
[1760328780512,0.43546,4129.8,4129.7,0.3339]
[1760328780807,3.58719236,4129.8,4129.7,0.3339]
[1760328781011,3.58719236,4129.8,4129.7,0.33613858]
[1760328781704,3.15173236,4129.8,4129.7,0.77193858]
[1760328782105,0.43545,4129.9,4129.7,0.43803858]
[1760328782305,3.65596445,4129.9,4129.8,0.5601]
[1760328782500,0.43545,4129.9,4129.8,0.5601]
[1760328782906,3.51451713,4129.9,4129.8,0.5601]
[1760328783108,3.51451713,4129.9,4129.7,0.00223858]
[1760328783304,3.51451713,4129.9,4129.8,0.3339]
[1760328784612,3.51451713,4129.9,4129.8,0.5601]
[1760328786211,3.51451713,4129.9,4129.7,0.00223858]
[1760328787412,3.51451713,4129.9,4129.7,0.33613858]
[1760328788203,3.51451713,4129.9,4129.7,0.00223858]
[1760328788416,3.51451713,4129.9,4129.8,0.3339]
[1760328789508,4.13036365,4129.9,4129.8,0.3339]
[1760328789723,4.13036365,4129.9,4129.8,0.5601]
[1760328790307,3.69491365,4129.9,4129.8,0.3339]
[1760328790513,3.69491365,4129.9,4129.8,0.5601]
[1760328790716,3.07906713,4129.9,4129.8,0.5601]
[1760328791213,3.20416663,4130.1,4130.0,0.472]
[1760328791408,0.6169102,4130.1,4130.0,0.472]
[1760328791606,3.73209337,4130.1,4130.0,0.472]
[1760328791814,3.73209337,4130.1,4130.0,0.9078]
[1760328795515,3.73209337,4130.1,4130.0,0.472]
[1760328795810,3.73209337,4130.1,4129.7,0.00223858]
[1760328796016,0.43546,4129.8,4129.7,0.33613858]
[1760328796204,1.0523702,4129.8,4129.7,0.33613858]
[1760328796405,4.23286968,4129.8,4129.7,0.33613858]
[1760328796910,3.79740968,4129.8,4129.7,0.78383858]
[1760328797108,0.43551,4129.3,4129.2,0.24217473]
[1760328797310,0.43558,4128.6,4128.5,0.3557]
[1760328797518,1.0524902,4128.6,4128.5,0.7022]
[1760328797816,0.43561,4128.4,4128.1,0.3465]
[1760328798013,0.43563,4128.2,4128.1,0.3465]
[1760328798314,4.13233865,4128.2,4128.1,0.37958323]
[1760328799214,4.13233865,4128.2,4128.1,0.03308323]
[1760328799418,3.69670865,4128.2,4128.1,0.81868323]
[1760328800719,3.07979845,4128.2,4128.1,0.81868323]
[1760328801218,3.07979845,4128.2,4128.1,0.59718323]
[1760328801421,3.69789102,4128.2,4128.1,0.59718323]
[1760328801922,3.69764745,4128.2,4128.1,0.59718323]
[1760328802423,3.69764745,4128.2,4128.1,0.81868323]
[1760328802919,3.07979845,4128.2,4128.1,0.81868323]
[1760328804117,3.07979845,4128.2,4128.1,1.25431323]
[1760328804318,0.00172171,4128.4,4128.3,0.7856]
[1760328804514,0.85452075,4129.4,4128.9,0.43555]
[1760328804823,3.7001656,4129.3,4129.2,0.7856]
[1760328805222,0.61760538,4129.3,4129.2,0.7856]
[1760328805427,3.71086819,4129.3,4129.2,0.81576193]
[1760328805629,3.71334616,4129.3,4129.2,0.81576193]
[1760328805826,0.62008335,4129.3,4129.2,0.81576193]
[1760328806027,0.00247797,4129.3,4129.2,0.81576193]
[1760328806427,0.00247797,4129.3,4129.2,0.37666193]
[1760328806618,2.11812571,4130.1,4130.0,0.1274]
[1760328806832,2.73629653,4130.1,4130.0,0.4739]
[1760328807145,5.95665471,4130.1,4130.0,0.4739]
[1760328807325,3.838529,4130.1,4130.0,0.4739]
[1760328807532,3.838529,4130.1,4130.0,0.50406193]
[1760328807731,3.84040471,4130.1,4130.0,0.50406193]
[1760328809330,3.84040471,4130.1,4130.0,0.94316193]
[1760328810033,0.43556,4128.9,4128.6,3.5543]
[1760328810232,0.61817082,4128.8,4128.7,0.3465]
[1760328810431,3.82435521,4128.8,4128.7,0.3465]
[1760328811140,0.43561,4128.4,4128.2,0.3465]
[1760328811438,3.71225682,4128.3,4128.2,0.3465]
[1760328813441,3.094086,4128.3,4128.2,0.3465]
[1760328820140,4.55197122,4129.6,4129.1,0.3465]
[1760328820344,0.61929784,4129.5,4129.1,0.3465]
[1760328820546,3.17255947,4129.3,4129.1,0.3465]
[1760328820745,3.60805947,4129.4,4129.1,0.3465]
[1760328821042,3.17255947,4129.2,4129.1,0.3465]
[1760328821342,3.17255947,4129.3,4129.1,0.3465]
[1760328821543,0.43552,4129.2,4129.1,0.3465]
[1760328822041,3.56874891,4129.2,4129.1,0.3465]
[1760328822446,3.13322891,4129.2,4129.1,0.3465]
[1760328822949,3.09446706,4129.5,4129.1,0.3465]
[1760328823248,3.09446706,4129.2,4129.1,0.3465]
[1760328823549,0.43551,4129.3,4129.1,0.3465]
[1760328823750,3.08932967,4129.2,4129.1,0.3465]
[1760328823948,4.98745122,4129.6,4129.5,0.1274]
[1760328824149,4.98745122,4129.6,4129.5,0.4739]
[1760328824452,8.07678089,4129.6,4129.5,0.4739]
[1760328827352,8.6968684,4129.6,4129.5,0.4739]
[1760328827553,8.6968684,4129.6,4129.0,0.4532]
[1760328827554,0.43553,4129.1,4129.0,0.4532]
[1760328827851,8.1133678,4129.1,4129.0,0.4532]
[1760328830956,8.1133678,4129.1,4129.0,0.681]
[1760328831763,3.12586658,4129.1,4129.0,0.9014]
[1760328833762,3.12586658,4129.1,4129.0,0.4532]
[1760328834161,3.12586658,4129.1,4129.0,0.681]
[1760328835063,1.08904,4128.4,4127.0,0.1285]
[1760328835274,4.55197122,4127.6,4127.1,0.3258]
[1760328835457,4.98766122,4127.6,4127.5,0.4543]
[1760328835657,5.6067261,4127.6,4127.5,0.4543]
[1760328835857,8.76492395,4127.6,4127.5,0.4543]
[1760328836063,8.76492395,4127.6,4127.5,0.45692769]
[1760328836264,8.14585907,4127.6,4127.5,0.45692769]
[1760328839766,8.14585907,4127.6,4127.5,0.68472769]
[1760328840461,8.14585907,4127.6,4127.0,0.1285]
[1760328840662,4.55197122,4127.1,4127.0,0.4543]
[1760328841068,3.09067919,4127.1,4127.0,0.9025]
[1760328841263,3.2078,4127.4,4127.0,0.5767]
[1760328841470,3.2078,4127.4,4127.1,0.3258]
[1760328841663,3.20993709,4127.4,4127.3,0.774]
[1760328841966,0.00213709,4127.4,4127.3,0.774]
[1760328842564,3.2078,4128.0,4127.5,0.1285]
[1760328842764,4.98758122,4128.4,4128.3,0.2278]
[1760328843067,8.16051777,4128.4,4128.3,0.774]
[1760328843663,8.16330339,4128.4,4128.3,0.5536]